Cogmind - Beta 14 @@@ ROGUE MODE // 2024.11.04 @ 21:10:06 Player: bschuck Result: Self-destructed Performance ------------- Evolutions (1) 500 Regions Visited (2) 400 Robots Destroyed (41) 205 Value Destroyed (712) 712 Prototype IDs (0) 0 Alien Tech Used (0) 0 Bonus (0) 0 TOTAL SCORE: 1817 Bonus ------- None Cogmind --------- Core Integrity 68/400 Matter 290/300 Energy 100/100 System Corruption 5% Temperature Cool (0) Movement Core (450) Ox8 Location -9/Materials Parts ------- > --- POWER (1) -------- (None) > --- PROPULSION (2) --- (None) > --- UTILITY (3) ------ Large Storage Unit > --- WEAPON (3) ------- Maul Maul > --- INVENTORY (15) --- Wheel Wheel Flight Unit Seismic Detector Hardened Light Armor Plating Tractor Beam Peak State ------------ > --- POWER ------------ Ion Engine > --- PROPULSION ------- Aluminum Leg Aluminum Leg > --- UTILITY ---------- Large Storage Unit Hardened Light Armor Plating Shield Generator > --- WEAPON ----------- Beam Rifle Particle Cannon Light Assault Rifle > --- INVENTORY -------- Light Ion Engine Wheel Flight Unit Small Battery Tractor Beam Beam Rifle Particle Gun Heavy Assault Rifle [Rating: 14] Favorites ----------- Power Ion Engine Engine Ion Engine Propulsion Aluminum Leg Treads Light Treads Leg Aluminum Leg Utility Small Storage Unit Device Heat Sink Storage Small Storage Unit Processor Targeting Computer Protection Hardened Light Armor Plating Weapon Beam Rifle Energy Gun Beam Rifle Energy Cannon Particle Cannon Ballistic Gun Light Assault Rifle Impact Weapon Maul Build | -11 -10 -9 ------- Run | Yrd Mat Mat Slots Evolved 2 | . . 2 Power . | . . . Propulsion . | . . . Utility 1 | . . 1 Weapon 1 | . . 1 Parts Attached 35 | 6 13 16 Power 5 | 1 2 2 Engine 5 | 1 2 2 Core . | . . . Reactor . | . . . Propulsion 7 | 2 2 3 Treads 2 | 2 . . Leg 5 | . 2 3 Wheel . | . . . Hover . | . . . Flight . | . . . Utility 10 | 1 4 5 Device 3 | . 1 2 Storage 4 | 1 1 2 Processor 1 | . 1 . Hackware . | . . . Protection 2 | . 1 1 Artifact . | . . . Weapon 13 | 2 5 6 Energy Gun 6 | 2 2 2 Energy Cannon 1 | . 1 . Ballistic Gun 4 | . 2 2 Ballistic Cannon . | . . . Launcher . | . . . Special Weapon . | . . . Impact Weapon 2 | . . 2 Slashing Weapon . | . . . Piercing Weapon . | . . . Special Melee Weapon . | . . . Unidentified Prototypes . | . . . Parts Lost 17 | . 5 12 Power 3 | . 1 2 Propulsion 6 | . 2 4 Utility 4 | . 1 3 Weapon 4 | . 1 3 Highest Loss Streak 6 | . 3 6 To Critical Strikes 1 | . . 1 Average Slot Usage (%) 92 | . 95 87 Engine 10 | . 13 7 Treads 11 | . 18 . Leg 13 | . 9 19 Device 5 | . 5 6 Storage 16 | . 16 16 Processor 1 | . 2 . Protection 4 | . 2 6 Energy Gun 17 | . 20 14 Energy Cannon 3 | . 2 4 Ballistic Gun 6 | . 3 10 Peak Build Rating 14 | 6 11 14 Average Rating 8 | 4 7 11 On Entrance 5 | . 6 11 Naked Turns . | . . . Heaviest Build 40 | 13 22 40 Greatest Support 40 | 40 40 20 Greatest Overweight (x) 8 | . 1 8 Average Overweight (x) . | . . 1 Largest Inventory Capacity 15 | 8 8 15 Average Capacity 10 | 6 8 14 Most Carried 9 | 3 8 9 Average Carried 6 | 1 6 6 Final Capacity 15 | 8 8 15 Final Carried 8 | 3 8 6 Class Distribution -------------------- 70% | Mutant 19% | Tank 10% | Scavenger-Tank Dominant Class ---------------- Mutant | -10/Materials Tank | -9/Materials Resources | -11 -10 -9 ----------- Run | Yrd Mat Mat Matter Collected 700 | 231 318 151 Remotely . | . . . Salvage Created 1100 | . 572 528 Parts 75 | . 43 32 Haulers Intercepted . | . . . Recyclers Shooed 2 | . 2 . Parts Field Recycled . | . . . Retrieved Matter . | . . . Parts Self-Destructed . | . . . Prevented . | . . . Kills | -11 -10 -9 ------- Run | Yrd Mat Mat Combat Hostiles Destroyed 24 | . 14 10 Guns 17 | . 13 4 Cannons 1 | . 1 . AOE 6 | . . 6 Classes Destroyed 9 | . 5 4 Worker 5 | . 4 1 Builder 6 | . . 6 Recycler 3 | . 1 2 Mechanic 1 | . . 1 Watcher 2 | . 2 . Swarmer 12 | . 8 4 Grunt 10 | . 6 4 Brawler 1 | . . 1 Sentry 1 | . . 1 Best Kill Streak 16 | . 5 16 Combat Bots Only 7 | . 3 7 Max Kills in Single Turn 12 | . 2 12 Gunslinging 1 | . 1 . Exploded 6 | . . 6 Melee . | . . . Uniques/NPCs Destroyed . | . . . Combat | -11 -10 -9 -------- Run | Yrd Mat Mat Hostile Shots Fired 352 | . 170 182 Missed 99 | . 50 49 Damage Taken 2669 | . 1075 1594 Core 545 | . 213 332 Absorbed by Shields 66 | . . 66 Regen/Repaired (Parts) 22 | . . 22 Core Remaining (%) 57 | 100 14 . Volleys Fired 89 | . 65 24 Largest 3 | . 2 3 Hottest 144 | . 124 144 Shots Fired 188 | . 125 63 Gun 175 | . 119 56 Cannon 13 | . 6 7 Launcher . | . . . Special . | . . . Kinetic 55 | . 28 27 Thermal 133 | . 97 36 Explosive . | . . . Electromagnetic . | . . . Robot Hit Streak 11 | . 11 7 Robot Miss Streak 6 | . 6 6 Penetration Max . | . . . Secondary Targets 6 | . 4 2 Max Gunslinging Chain 1 | . 1 1 Shots Hit Robots 95 | . 71 24 Core Hits 49 | . 31 18 Critical Kills . | . . . Critical Parts Destroyed . | . . . Critical Strikes 5 | . 5 . Burn 5 | . 5 . Melee Attacks 1 | . . 1 Impact 1 | . . 1 Slashing . | . . . Piercing . | . . . Sneak Attacks . | . . . Combat Hostiles . | . . . Follow-up Attacks . | . . . Damage Inflicted 2468 | . 797 1671 Guns 1106 | . 755 351 Cannons 164 | . 42 122 Explosions 1194 | . . 1194 Melee . | . . . Ramming 4 | . . 4 Kinetic 292 | . 177 115 Thermal 2172 | . 620 1552 Explosive . | . . . Electromagnetic . | . . . Impact . | . . . Slashing . | . . . Piercing . | . . . Highest Corruption 5 | . 3 5 Average Corruption 3 | . 2 4 Corruption Purged . | . . . Corruption Blocked . | . . . Effects 13 | . 9 4 Message Errors 3 | . 2 1 Matter Fused 2 | . 2 . Energy Discharges 1 | . 1 . Parts Rejected 1 | . . 1 Data Loss (minor) 4 | . 4 . Alerts 1 | . . 1 Weapon Failures 1 | . . 1 Overload Shots . | . . . Overflow Damage 433 | . . 433 Projectiles . | . . . Explosions 433 | . . 433 Melee . | . . . Knockbacks . | . . . Impact . | . . . Kinetic . | . . . Secondary . | . . . Self-Inflicted Damage 114 | . . 114 Shots 1 | . . 1 Rammed . | . . . Targets Rammed 1 | . . 1 Kicked 1 | . . 1 Crushed . | . . . Highest Temperature 433 | . 425 433 Average Temperature 144 | . 131 160 Received Heat Transfer 862 | . 216 646 Effects 4 | . 4 . Shutdowns 2 | . 2 . Energy Bleed 1 | . 1 . Damage (minor) 1 | . 1 . Siege Activations . | . . . Robots Corrupted . | . . . Combat Hostiles . | . . . Parts Fried . | . . . Impact Corruptions . | . . . Robots Melted . | . . . Combat Hostiles . | . . . Parts Melted 8 | . 5 3 Heat Transferred 3556 | . 1992 1564 Parts Sabotaged . | . . . Parts Stolen . | . . . Parts Stripped . | . . . Power Chain Reactions . | . . . Alert | -11 -10 -9 ------- Run | Yrd Mat Mat Peak Influence 277 | . 219 277 Initial 50 | . . 50 Average 98 | . 109 90 Maximum Alert Level 1 | . 1 1 Low Security (%) 95 | 100 99 89 Level 1 4 | . . 10 Level 2 . | . . . Level 3 . | . . . Level 4 . | . . . Level 5 . | . . . High Security . | . . . Max Security . | . . . Squads Dispatched 6 | . 3 3 Investigation 4 | . 1 3 Extermination . | . . . Reinforcement 2 | . 2 . Assault . | . . . Garrison . | . . . Intercept . | . . . Searches Triggered . | . . . Construction Impeded . | . . . Haulers Reinforced . | . . . Active Scanning Responses . | . . . Cargo Convoy Interrupts . | . . . Stealth | -11 -10 -9 --------- Run | Yrd Mat Mat Distress Signals 2 | . 2 . Communications Jammed . | . . . Distress Signals . | . . . Times Spotted 47 | . 24 23 Peak Tracking Total 12 | . 5 12 Tactical Retreats 2 | . 1 1 Traps | -11 -10 -9 ------- Run | Yrd Mat Mat Traps Triggered 6 | . 3 3 Indirectly . | . . . Trap Hack Attempts . | . . . Triggered . | . . . Disarmed . | . . . Reprogrammed . | . . . Reused . | . . . Traps Extracted . | . . . Installed . | . . . Triggered . | . . . Machines | -11 -10 -9 ---------- Run | Yrd Mat Mat Machines Disabled 6 | . . 6 Max in Single Turn 4 | . . 4 Machines Repaired . | . . . Machines Dismantled . | . . . Machines Sabotaged . | . . . Overloaded Fab Kills . | . . . Hacking | -11 -10 -9 --------- Run | Yrd Mat Mat Machines Accessed 5 | . 2 3 Terminals 2 | . 1 1 Fabricators . | . . . Repair Stations 1 | . . 1 Recycling Units 1 | . 1 . Scanalyzers 1 | . . 1 Garrison Access . | . . . Total Hacks 14 | . 4 10 Successful 10 | . 3 7 Failed 4 | . 1 3 Catastrophic . | . . . Database Lockouts . | . . . Manual 1 | . . 1 Terminals 5 | . 3 2 Fabricators . | . . . Repair Stations 4 | . . 4 Recycling Units 1 | . 1 . Scanalyzers 4 | . . 4 Garrison Access . | . . . Terminal Hacks 3 | . 2 1 Record 2 | . 1 1 Alert Level 1 | . 1 . Fabricator Hacks . | . . . Repair Station Hacks 3 | . . 3 Scan Component 2 | . . 2 Repair 1 | . . 1 Recycling Unit Hacks 1 | . 1 . Recycle Component 1 | . 1 . Scanalyzer 3 | . . 3 Insert Component 2 | . . 2 Analyze 1 | . . 1 Garrison Access Hacks . | . . . Unauthorized Hacks . | . . . Terminals . | . . . Fabricators . | . . . Repair Stations . | . . . Recycling Units . | . . . Scanalyzers . | . . . Garrison Access . | . . . Data Cores Recovered . | . . . Used . | . . . Hacking Detections 2 | . . 2 Full Trace Events 1 | . . 1 Feedback Events . | . . . Feedback Blocked . | . . . Robot Schematics Acquired . | . . . Robots Built . | . . . Authchips . | . . . Time . | . . . Total Robot Build Rating . | . . . Part Schematics Acquired 1 | . . 1 Parts Built . | . . . Authchips . | . . . Time . | . . . Total Part Build Rating . | . . . Parts Repaired 1 | . . 1 Time 26 | . . 26 Parts Recycled 1 | . 1 . Recycled Matter . | . . . Retrieved Matter . | . . . Retrieved Components . | . . . Parts Scanalyzed 1 | . . 1 Part Schematics Acquired 1 | . . 1 Parts Damaged . | . . . Bothacking | -11 -10 -9 ------------ Run | Yrd Mat Mat Used RIF Installer . | . . . Robots Hacked . | . . . Non-combat . | . . . Combat . | . . . Robot Hacks Applied . | . . . Relay Couplers Released . | . . . Fabnet Peak Effective % . | . . . Robots Rewired . | . . . Allies Hacked . | . . . Hacks Repelled . | . . . Allies | -11 -10 -9 -------- Run | Yrd Mat Mat Total Allies . | . . . Largest Group . | . . . Highest-Rated Group . | . . . Highest-Rated Ally . | . . . Total Orders . | . . . Ally Attacks . | . . . Total Damage . | . . . Kills . | . . . Allies Corrupted . | . . . Allies Melted . | . . . Intel | -11 -10 -9 ------- Run | Yrd Mat Mat Robot Analysis Total . | . . . Derelict Logs Recovered . | . . . Drone Launches . | . . . Drone Recoveries . | . . . Exploration | -11 -10 -9 ------------- Run | Yrd Mat Mat Turns Passed 1454 | 58 852 544 Spaces Moved 646 | 32 398 216 Core 7 | 6 . 1 Treads 287 | 26 261 . Legs 352 | . 137 215 Wheels . | . . . Hover . | . . . Flight . | . . . Fastest Speed 50 | 50 120 190 Average Speed 171 | 139 158 199 Slowest Speed 450 | 160 190 450 Overloaded Moves . | . . . Propulsion Burnouts . | . . . Robots Hopped . | . . . Cave-ins Triggered . | . . . Exploration Rate (%) 32 | 3 67 28 Regions Visited 2 Branch Regions . Pre-discovered Areas . | . . . Known Exits Taken . | . . . Unknown Exits Taken 2 | 1 1 . Scrap Searched . | . . . Spaces Dug . | . . . Terrain Destroyed 47 | . . 47 Melee . | . . . Projectile . | . . . AOE 47 | . . 47 Terrain Rammed . | . . . Walls Destroyed . | . . . Machines Disabled . | . . . Actions | -11 -10 -9 --------- Run | Yrd Mat Mat Total 833 | 46 507 280 Wait 2 | . . 2 Move 644 | 31 397 216 Hop . | . . . Pick Up 45 | 9 22 14 Fast Attach . | . . . Attach 35 | 6 13 16 Detach . | . . . Swap . | . . . Drop 16 | . 10 6 Fire 89 | . 65 24 Melee 1 | . . 1 Ram . | . . . Kick 1 | . . 1 Crush . | . . . Escape Stasis . | . . . Rewire . | . . . Trap . | . . . Miscellaneous . | . . . Route ------- -11/Scrapyard -10/Materials -9/Materials (discovered 1 exit: [*Min]) History --------- Turn | Location | Event 17 | -11/Scrapyard | Discovered new exit (range 16) 59 | -11/Scrapyard | Entered Materials 312 | -10/Materials | Build established: Mutant 612 | -10/Materials | Core integrity fell below 50% 657 | -10/Materials | Lost 3 parts (2n1w) 859 | -10/Materials | Core integrity fell below 20% 890 | -10/Materials | Discovered new exit (range 12) 911 | -10/Materials | Entered another Materials area 911 | -9/Materials | Evolved 2 slots: Utility x1, Weapon x1 1046 | -9/Materials | Repaired Ion Engine 1212 | -9/Materials | Lost 4 parts (1p1n1u1w) 1420 | -9/Materials | Destroyed 7 combat bots 1444 | -9/Materials | Core integrity fell below 50% 1446 | -9/Materials | Discovered new exit (range 10) 1455 | -9/Materials | Core integrity fell below 20% 1455 | -9/Materials | Self-destructed Last Messages --------------- R-06 Scavenger collects Wheel. U-05 Engineer builds a Wall. Aluminum Leg destroyed. K-01 Serf collects debris. R-06 Scavenger collects Beam Rifle. U-05 Engineer destroyed. U-05 Engineer lays Concrete. Sml. Battery destroyed. U-05 Engineer lays Concrete. K-01 Serf collects debris. U-05 Engineer lays Concrete. K-01 Serf collects debris. EXIT=FOUND U-05 Engineer lays Concrete. Aluminum Leg destroyed. U-05 Engineer lays Concrete. K-01 Serf collects debris. U-05 Engineer lays Concrete. K-01 Serf collects debris. U-05 Engineer lays Concrete. Map ----- +----------------------------------------------------+ | ?????????????????????????????????????????????????? | | ?????????????????????????????????????????????????? | | ?????????????????????????????????????????????????? | | ?????????????????????????????????????????????????? | | ?????????????????????????????????????????????????? | | ?????????????????????????????????????????????????? | | ?????????????????????????????????????????????????? | | ?????????????????????????????????????????????????? | | ??????????# ???????????????????????????????????? | | ??????????# #??????????????????????????????????? | | ??????????# #???????????? ?????????????????????? | | ?????????? #???????????? #???????????????????? | | ??????????# #???????????? ##??????????????????? | | ??????????# #???????????? #??????????????????? | | ???######## ########???? #??????????????????? | | ???# # # #???? #??????????????????? | | ???# / ! # # || #???? < #??????????????????? | | ???# ! # # | #???? #??????????????????? | | ???# # # ##??? #??????????????????? | | ???# # #g #???a #??????????????????? | | ???#= ! " ;g ;###? #???????????????????? | | ???###""""" Y%g ;;;;;;### #???????????????????? | | #####" g[ =%= +???????????????????? | | " gg = *!| #???????????????????? | | " = #???????????????????? | | """ " k @ g #???????????????????? | | T" "%! = u g #???????????????????? | | """ + g + ??????????????????? | | # ###### ??????????????????? | | ###### #????????????????????????? | | ????# ## ;;;+#####?????????????????????? | | ????# ##;# #?????????????????????? | | ????# #### """ #?????????????????????? | | ????# #??# """ #?????????????????????? | | ????# #??# """ #?????????????????????? | | ????### ### #??# """ " " #?????????????????????? | | ??????# ??# #??# """ "R" #?????????????????????? | | ??????# ??# #??# """ ##??##########????????? | | ??????#+??# #??# ##??# #????????? | | ?????????## ##?############### #????????? | | ?????????# [#?# # ! #????????? | | ?????""" # ### """ # #????????? | | ?????""" + T + """ # #????????? | | ? # ### """ # #????????? | | ?????????# #?# # #????????? | | ?????????###+##### % # #????????? | | ?????????# ########+####### ########## | | ?????????# #?#### ########+###### | | ?????????# #????# ##### | | ?????????# #????# + | +----------------------------------------------------+ Best States ------------- Heat Dissipation 35 Energy Generation 10 Energy Capacity 350 Matter Stores 450 Matter Capacity 450 Sight Range 16 Terrain Scan Density 10 Armor Coverage 150 Evasion (%) 55 Targeting Accuracy 5 Recoil Reduction 2 Item Schematics ----------------- Particle Gun | -9/Materials | Scanalyzed Robot Schematics ------------------ None Fabricated ------------ Nothing Alien Tech Used ----------------- None Achievements -------------- Party Time Quick And Dirty Challenges ------------ None Game ------ Seed SmartbombGammaRay Manual? 0 Play Time 00:35:25 Cumulative 22.5 hours Start 2024.11.04 @ 20:36:35 End 2024.11.04 @ 21:10:06 Sessions 1 Manual Loads 0 Difficulty Rogue Special Mode None Game No. 32 Rogue 21 Adventurer 0 Explorer 11 Win Type - Total 0 Types 0/0/0/0/0/0/0/0/0 Lore% 5 Gallery% 25 Achievement% 21 Wizard Run 0 Options --------- Layout 1 ASCII 0 Keyboard 0 Movement Mouse Keybinds 0 Fullscreen 1 Font 16/SmallcapsGlow Map View 50x40 Zoom Use 0% Tactical HUD 0 Map Filters NONE Filters NONE Steam SD RUN: 53d79dd8-76d5-4061-a8bd-4183bb96ff69